bitfinex/quotes_ETHUSD_20250411
["timestamp","ask_amount","ask_price","bid_price","bid_amount"]
[1744359524582,14.20292757,1552.5,1552.2,0.95779674]
[1744359525085,6.44166,1552.4,1552.2,0.35917055]
[1744359525382,6.44172,1552.4,1551.9,7.97295]
[1744359525572,6.44248,1552.2,1551.9,7.97295]
[1744359526146,6.44296,1552.1,1551.9,1.5296]
[1744359526675,6.44248,1552.2,1551.9,1.5296]
[1744359526885,7.086728,1552.2,1552.0,0.59901672]
[1744359528588,13.529518,1552.2,1552.0,0.59901672]
[1744359528789,13.529428,1552.2,1552.0,0.59901672]
[1744359529085,13.529428,1552.2,1551.8,14.43397]
[1744359529680,13.529428,1552.2,1551.9,0.59918331]
[1744359529875,1.3529428,1552.1,1551.9,7.40224666]
[1744359530075,7.086728,1552.2,1551.9,7.40224666]
[1744359530374,7.086728,1552.2,1551.9,6.80306335]
[1744359530571,9.4417,1552.4,1551.9,0.35948335]
[1744359530770,16.51560757,1552.5,1552.1,6.44265]
[1744359530974,16.51560757,1552.5,1552.0,0.95835952]
[1744359531179,15.445,1552.5,1552.1,7.04161617]
[1744359531381,21.88642,1552.5,1552.1,7.04161617]
[1744359531687,21.88642,1552.5,1552.2,0.59887617]
[1744359531688,6.44171,1552.4,1552.2,0.59887617]
[1744359532073,21.8866,1552.5,1552.2,0.59887617]
[1744359532389,6.44167,1552.4,1552.0,6.44312]
[1744359532682,14.428127,1552.4,1552.0,6.44312]
[1744359532870,14.428037,1552.4,1552.1,0.59879898]
[1744359533182,7.986197,1552.4,1552.0,12.88628]
[1744359533895,7.986197,1552.4,1552.1,0.5988766]
[1744359534187,9.0036,1552.5,1552.2,6.44232]
[1744359534587,9.0036,1552.5,1552.3,6.442]
[1744359534884,6.44221,1552.3,1552.0,6.44323]
[1744359535086,6.44221,1552.3,1552.0,12.88634]
[1744359535289,9.44163,1552.4,1552.1,6.44283]
[1744359535478,7.386373,1552.3,1552.1,0.59946241]
[1744359535991,3.0,1552.4,1552.1,6.44286]
[1744359536301,3.0,1552.4,1552.1,6.4427]
[1744359536498,3.0,1552.4,1552.2,6.44244]
[1744359536666,15.44486,1552.5,1552.2,6.44229]
[1744359536870,21.88637,1552.5,1552.1,12.88555]
[1744359537173,24.6607254,1552.5,1552.1,6.44274]
[1744359537494,6.44164,1552.4,1552.2,0.59951589]
[1744359537656,6.44164,1552.4,1552.0,12.88629]
[1744359537859,12.88347,1552.4,1552.0,12.88629]
[1744359538087,12.88347,1552.4,1552.1,0.59960018]
[1744359538288,1.288347,1552.3,1552.1,0.59960018]
[1744359538463,7.730417,1552.3,1552.1,0.59960018]
[1744359538660,1.288347,1552.3,1552.1,7.04246018]
[1744359538865,6.4417,1552.4,1552.1,7.04246018]
[1744359539086,6.4417,1552.4,1552.1,0.59960018]
[1744359539291,12.88359,1552.4,1552.1,0.59960018]
[1744359539891,6.44209,1552.3,1552.1,0.59960018]
[1744359540092,6.44209,1552.3,1552.0,6.44313]
[1744359540390,14.172809,1552.3,1552.0,6.44313]
[1744359540688,5.96498396,1552.2,1551.7,1.6524]
[1744359540891,5.96498396,1552.2,1551.8,7.04339306]
[1744359541268,12.40762396,1552.2,1551.9,0.95925275]
[1744359541675,18.85029396,1552.2,1551.9,6.80341969]
[1744359541874,1.8850294,1552.1,1551.9,0.35972969]
[1744359542164,1.8850294,1552.1,1551.9,6.80323969]
[1744359542362,14.49947,1552.2,1551.9,6.80323969]
[1744359542565,6.44294,1552.1,1551.8,6.44395]
[1744359542909,19.8730154,1552.5,1552.1,6.44274]
[1744359543071,4.35068396,1552.4,1551.9,7.04313719]
[1744359543261,12.88548,1552.2,1551.8,6.44393]
[1744359543458,1.288548,1552.1,1551.8,6.44393]
[1744359543966,1.288548,1552.1,1551.9,0.35977238]
[1744359544782,15.778358,1552.1,1551.9,0.35977238]
[1744359544978,5.95438396,1552.4,1551.9,6.80329238]
[1744359545178,4.6037,1552.4,1552.1,6.44262]
[1744359545374,11.04536,1552.4,1552.1,6.44262]
[1744359546070,0.2496,1552.5,1552.4,6.44163]
[1744359546283,0.2496,1552.5,1552.4,7.04081826]
[1744359546509,0.2496,1552.5,1552.4,10.94468167]
[1744359547006,0.2496,1552.5,1552.4,10.39468167]
[1744359547319,0.2496,1552.5,1552.4,11.42127094]
[1744359547505,0.2496,1552.5,1552.4,10.39468167]
[1744359547877,0.2496,1552.5,1552.4,9.04641384]
[1744359548098,0.2496,1552.5,1552.4,0.95868384]
[1744359548290,0.2496,1552.5,1552.4,7.40031384]
[1744359549599,0.2496,1552.5,1552.4,0.95868384]
[1744359550219,0.2496,1552.5,1552.4,7.40031384]
[1744359550582,0.2496,1552.5,1552.4,9.52701384]
[1744359552177,21.61524,1553.3,1552.9,7.96306]
[1744359552421,15.17699,1553.3,1552.9,7.96306]
[1744359552598,6.43845,1553.2,1552.9,7.96306]
[1744359552922,6.43845,1553.2,1552.6,7.96434]
[1744359552923,6.43915,1553.0,1552.6,7.96434]
[1744359553219,6.43981,1552.9,1552.6,1.5236]
[1744359553511,6.43981,1552.9,1552.5,6.44116]
[1744359553710,6.43981,1552.9,1552.6,0.59825127]
[1744359553711,6.43998,1552.8,1552.6,0.59825127]
[1744359554765,12.88114,1552.7,1552.3,6.442]
[1744359555025,8.05774,1552.8,1552.4,7.03964571]
[1744359555180,14.49808,1552.8,1552.4,7.03964571]
[1744359555625,14.49808,1552.8,1552.4,12.88277]
[1744359555811,4.43551183,1552.9,1552.2,7.73774765]
[1744359555812,6.43961,1552.9,1552.5,6.441]
[1744359556340,6.43961,1552.9,1552.6,6.44074]
[1744359556628,12.8794,1552.9,1552.5,6.441]
[1744359556929,12.88031,1552.8,1552.4,6.44156]
[1744359557082,12.88031,1552.8,1552.5,0.35883023]
[1744359557909,6.44048,1552.7,1552.5,0.35883023]
[1744359558112,15.17813,1552.8,1552.5,0.35883023]
[1744359558295,8.738,1552.8,1552.5,7.94804]
[1744359558701,15.17799,1552.8,1552.5,7.94804]
[1744359558899,6.44057,1552.7,1552.4,6.44155]
[1744359559100,6.44057,1552.7,1552.5,0.59801391]
[1744359559428,12.88121,1552.7,1552.3,12.88387]
[1744359559588,6.44057,1552.7,1552.3,12.88387]
[1744359560020,12.88119,1552.7,1552.3,12.88387]
[1744359560329,15.2592853,1552.7,1552.3,12.88387]
[1744359560834,15.2592853,1552.7,1552.2,7.94959]
[1744359560835,6.44099,1552.6,1552.2,7.94959]
[1744359560989,10.3762253,1552.7,1552.3,6.44199]
[1744359561189,10.3762253,1552.7,1552.3,13.48209024]
[1744359561431,10.3762253,1552.7,1552.3,6.4419]
[1744359561656,1.03762253,1552.6,1552.2,1.5072]
[1744359561795,1.03762253,1552.6,1551.9,8.02243]
[1744359561796,6.44236,1552.3,1551.9,8.02243]
[1744359561995,12.88472,1552.3,1551.9,8.02243]
[1744359562510,6.44236,1552.3,1551.9,8.02233]
[1744359563033,12.88462,1552.3,1551.9,8.02233]
[1744359563331,1.6663,1552.5,1552.1,6.44258]
[1744359563486,8.10788,1552.5,1552.2,0.644258]
[1744359563686,14.54939,1552.5,1552.1,6.44258]
[1744359564121,6.44085,1552.6,1552.1,0.55]
[1744359564289,6.44085,1552.6,1552.2,8.33129205]
[1744359564715,6.44085,1552.6,1552.2,14.77351205]
[1744359564933,12.88187,1552.6,1552.2,8.33129205]
[1744359565108,6.44126,1552.5,1552.2,8.33129205]
[1744359565309,6.44126,1552.5,1552.2,7.97221]
[1744359565517,12.88273,1552.5,1552.2,1.53]
[1744359565939,6.44169,1552.4,1552.1,6.44281]
[1744359566838,6.44231,1552.3,1552.0,1.6356]
[1744359567144,6.44208,1552.3,1552.0,9.531024]
[1744359567633,14.47858,1552.4,1552.0,9.531024]
[1744359568015,12.88284,1552.5,1552.1,12.88544]
[1744359568409,6.44141,1552.5,1552.1,12.88544]
[1744359568806,12.88286,1552.5,1552.1,12.88544]
[1744359569055,12.88286,1552.5,1552.1,13.595279]
[1744359569735,6.44141,1552.5,1552.2,6.17675672]
[1744359570672,12.88283,1552.5,1552.2,6.17675672]
[1744359570973,12.88283,1552.5,1552.1,6.44271]
[1744359571159,12.88283,1552.5,1552.2,0.59900419]
[1744359571364,6.44183,1552.4,1552.2,0.59900419]
[1744359571659,14.330903,1552.5,1552.1,13.48458419]
[1744359571837,12.88267,1552.5,1552.1,7.04170419]
[1744359572449,6.44182,1552.4,1552.0,14.52191]
[1744359572633,6.44182,1552.4,1552.1,0.3596285]
[1744359572832,12.39092822,1552.6,1552.1,0.3596285]
[1744359573035,1.5995,1552.6,1552.3,6.44186]
[1744359573462,12.88107,1552.7,1552.3,6.44186]
[1744359573729,6.44082,1552.6,1552.3,6.44186]
[1744359573927,6.44045,1552.7,1552.3,12.88376]
[1744359574746,6.44045,1552.7,1552.4,0.59949274]
[1744359574935,12.88108,1552.7,1552.4,0.59949274]
[1744359575268,15.64366482,1552.7,1552.3,12.88376]
[1744359575468,15.64366482,1552.7,1552.3,6.44186]
[1744359576077,15.64366482,1552.7,1552.3,12.88373]
[1744359576266,15.64366482,1552.7,1552.4,0.59959839]
[1744359576471,15.64366482,1552.7,1552.4,0.41862187]
[1744359576971,15.64366482,1552.7,1552.3,6.44186]
[1744359577157,15.64366482,1552.7,1552.3,12.88375]
[1744359577366,8.738,1552.8,1552.6,6.4408]
[1744359577567,8.738,1552.8,1552.6,12.88146]
[1744359577807,6.43887,1553.1,1552.7,6.44014]
[1744359578090,21.45424345,1553.2,1552.8,6.43981]
[1744359578380,17.10377523,1553.2,1552.9,6.43954]
[1744359578579,16.76952,1553.2,1552.9,6.43954]
[1744359578758,16.76952,1553.2,1552.8,6.43981]
[1744359578955,6.43886,1553.1,1552.8,12.87961]
[1744359579162,4.77980312,1553.3,1553.0,6.43895]
[1744359579361,17.65584312,1553.3,1552.9,6.43952]
[1744359579786,6.43888,1553.1,1552.8,6.4399]
[1744359579998,6.43834,1553.2,1552.9,6.43954]
[1744359580163,17.65596312,1553.3,1552.9,6.43942]
[1744359580363,17.65596312,1553.3,1552.9,12.87878]
[1744359580788,11.21776312,1553.3,1553.0,6.43908]
[1744359580973,4.77980312,1553.3,1553.0,6.43908]
[1744359581168,11.21788312,1553.3,1552.9,6.43951]
[1744359581784,6.4385,1553.2,1552.9,6.43951]
[1744359582293,6.4385,1553.2,1552.8,6.43995]
[1744359582460,6.43896,1553.1,1552.8,6.43995]
[1744359582662,12.87796,1553.1,1552.7,8.64548]
[1744359582875,6.43915,1553.0,1552.7,8.09548]
[1744359583164,14.44194,1553.1,1552.7,8.09535]
[1744359583477,6.43917,1553.0,1552.7,8.09533]
[1744359583684,6.43917,1553.0,1552.7,14.53552]
[1744359583899,9.88210082,1553.1,1552.7,14.53552]
[1744359584687,16.32105082,1553.1,1552.7,14.53552]
[1744359585903,6.43918,1553.0,1552.7,6.44019]
[1744359586592,14.51069708,1553.0,1552.6,13.36745739]
[1744359586896,14.51068708,1553.0,1552.6,13.36745739]
[1744359587099,6.43975,1552.9,1552.5,15.05416]
[1744359587590,6.44002,1552.8,1552.5,8.06298]
[1744359588163,6.44002,1552.8,1552.5,6.44118]
[1744359588359,1.6312,1552.7,1552.4,6.44161]
[1744359588597,14.51214,1552.7,1552.3,12.88387]
[1744359589105,14.51214,1552.7,1552.3,6.44186]
[1744359589478,6.44086,1552.6,1552.3,6.44186]
[1744359589909,6.44086,1552.6,1552.2,6.44239]
[1744359589910,6.44138,1552.5,1552.2,6.44239]
[1744359590374,14.60613482,1552.5,1552.1,8.04522]
[1744359590577,6.4422,1552.3,1552.0,6.44321]
[1744359590796,6.4422,1552.3,1552.1,0.35953807]
[1744359591012,10.79292822,1552.2,1552.1,0.35953807]
[1744359591373,6.44246,1552.2,1552.1,0.35953807]
[1744359591577,6.44246,1552.2,1551.9,0.35953807]
[1744359592004,6.44329,1552.0,1551.9,0.35953807]
[1744359592586,12.88683,1552.0,1551.7,6.18494765]
[1744359593815,6.44371,1551.9,1551.7,6.18494765]
[1744359594017,6.44412,1551.8,1551.7,6.18494765]
[1744359594218,11.05552,1551.8,1551.7,6.18494765]
[1744359594384,13.88487882,1551.8,1551.7,7.65e-06]
[1744359595326,13.85917882,1551.8,1551.7,7.65e-06]
[1744359596994,13.85917882,1551.8,1551.4,7.95992264]
[1744359596995,9.44537,1551.5,1551.4,0.3970125]
[1744359597195,24.17923822,1551.5,1551.4,0.3970125]
[1744359597636,8.10312,1551.2,1551.1,0.05]
[1744359597808,13.90853822,1551.2,1551.1,0.05]
[1744359598827,12.45358822,1551.2,1551.1,0.05]
[1744359600942,5.98766822,1551.4,1551.1,6.49703]
[1744359601247,10.79708822,1551.2,1551.1,0.05]
[1744359601526,15.43428822,1551.2,1551.1,0.05]
[1744359601699,17.62233804,1551.2,1551.1,0.05]
[1744359603138,6.44892,1550.7,1550.4,1.6246]
[1744359603435,5.87146822,1550.6,1550.4,6.44986]
[1744359603745,10.79806822,1551.0,1550.6,12.89768]
[1744359603943,4.35046822,1551.0,1550.7,6.4487]
[1744359604151,4.35046822,1551.0,1550.7,13.69896]
[1744359604303,4.35046822,1551.0,1550.8,6.44813]
[1744359604504,11.726,1551.1,1550.9,6.44767]
[1744359604505,3.0,1551.1,1550.9,6.44767]
[1744359604745,13.07646822,1551.2,1551.0,6.44709]
[1744359604950,4.35046822,1551.4,1551.2,6.44633]
[1744359605246,15.14897,1551.6,1551.2,2.191433]
[1744359605247,13.05446822,1551.6,1551.2,2.191433]
[1744359605541,4.35046822,1551.8,1551.6,7.96115]
[1744359605703,4.35046822,1551.8,1551.6,7.96104]
[1744359605902,4.35046822,1551.8,1551.6,1.5163]
[1744359606103,10.79474822,1551.8,1551.6,1.5163]
[1744359606351,10.79474822,1551.8,1551.4,14.41829]
[1744359606513,6.44647,1551.3,1550.8,6.44795]
[1744359606716,4.35046822,1551.1,1550.9,6.44785]
[1744359607163,4.35046822,1551.1,1550.8,7.97495]
[1744359607511,4.35046822,1551.1,1550.8,15.865353]
[1744359608255,4.35046822,1551.1,1550.9,6.44784]
[1744359609659,4.35046822,1551.1,1550.8,9.417313]
[1744359609900,4.35046822,1551.1,1550.8,7.97495]
[1744359610151,4.35046822,1551.1,1550.7,6.44868]
[1744359610363,4.35046822,1551.1,1550.8,12.89599]
[1744359610507,4.35046822,1551.1,1550.9,6.44786]
[1744359611145,10.79764822,1551.1,1550.7,6.44864]
[1744359611349,13.39257804,1551.1,1550.7,6.4485]
[1744359611549,6.94539804,1551.1,1550.8,6.44805]
[1744359612049,6.94539804,1551.1,1550.8,12.89611]
[1744359612250,4.35046822,1551.1,1550.9,6.44772]
[1744359612423,8.705,1551.2,1550.9,6.44767]
[1744359612810,5.95536822,1551.1,1550.6,6.4491]
[1744359613047,4.35046822,1550.9,1550.6,6.44897]
[1744359613227,4.35046822,1550.9,1550.4,6.44992]
[1744359613431,13.33228682,1550.8,1550.4,6.44992]
[1744359613955,6.44929,1550.6,1550.2,12.90152]
[1744359614121,6.44929,1550.6,1550.2,6.45076]
[1744359614122,12.89865,1550.6,1550.2,6.45076]
[1744359614315,6.44998,1550.4,1550.1,6.50113]
[1744359614511,6.45078,1550.2,1550.1,0.05]
[1744359614945,7.740906,1550.2,1550.1,0.05]
[1744359615152,10.80094822,1550.3,1550.1,0.05]
[1744359615153,4.35046822,1550.3,1550.1,0.05]
[1744359615451,10.80094822,1550.3,1550.1,0.05]
[1744359615841,6.45078,1550.2,1550.1,0.05]
[1744359616046,10.80094822,1550.3,1550.1,0.05]
[1744359616047,4.35046822,1550.3,1550.1,6.50116]
[1744359616246,6.45009,1550.4,1550.1,6.50116]
[1744359616446,12.90037,1550.4,1550.1,0.05]
[1744359616765,7.17094749,1550.4,1550.1,0.05]
[1744359617095,4.35046822,1550.7,1550.4,6.44972]
[1744359617296,1.6414,1550.8,1550.5,6.44937]
[1744359617697,8.08973,1550.8,1550.5,6.44937]
[1744359617874,4.35046822,1550.7,1550.4,12.8997]
[1744359618192,4.35046822,1550.7,1550.5,6.44944]
[1744359618356,6.44708,1551.1,1550.7,6.4487]
[1744359618357,12.39644822,1551.1,1550.7,6.4487]
[1744359618557,10.79669822,1551.3,1551.0,6.44745]
[1744359618796,18.48270804,1551.3,1550.9,6.44782]
[1744359619097,6.4467,1551.2,1550.9,6.44782]
[1744359619388,18.48283804,1551.3,1550.9,6.4477]
[1744359619587,6.44692,1551.2,1550.8,6.44821]
[1744359619796,6.44692,1551.2,1550.9,6.44773]
[1744359620010,8.2951608,1551.2,1550.8,6.44814]
[1744359620207,8.2951608,1551.2,1550.7,6.44862]
[1744359620208,10.79764822,1551.1,1550.7,6.44862]
[1744359620390,4.35046822,1550.9,1550.4,6.44986]
[1744359620576,10.79838822,1550.9,1550.5,6.44925]
[1744359620901,10.79838822,1550.9,1550.6,6.44909]
[1744359621609,4.35046822,1550.9,1550.6,12.89784]
[1744359621777,4.35046822,1550.9,1550.6,6.4489]
[1744359622309,16.6992,1551.0,1550.7,6.44868]
[1744359622609,4.35046822,1551.1,1550.5,1.6164]
[1744359622765,1.5466,1551.2,1551.0,6.44731]
[1744359623399,10.79671822,1551.3,1550.9,6.44778]
[1744359623698,17.24315822,1551.3,1550.9,6.44763]
[1744359623897,13.84259404,1551.3,1550.9,12.89535]
[1744359624100,13.84259404,1551.3,1550.9,6.44763]
[1744359624405,20.28902404,1551.3,1550.9,6.44763]
[1744359624707,13.84259404,1551.3,1551.0,6.4474]
[1744359624892,20.28917404,1551.3,1550.9,6.44763]
[1744359625319,6.44666,1551.2,1550.9,6.44763]
[1744359626488,12.89366,1551.2,1550.8,12.89631]
[1744359626785,13.84262404,1551.3,1550.9,14.44536]
[1744359626984,13.84262404,1551.3,1550.9,7.99767]
[1744359627315,6.44663,1551.2,1550.9,7.99767]
[1744359627521,12.89348,1551.2,1550.9,7.99767]
[1744359627717,1.5465,1551.0,1550.5,1.5688]
[1744359627883,6.44861,1550.8,1550.4,6.44965]
[1744359628291,6.44873,1550.7,1550.4,6.44965]
[1744359628513,1.5151,1550.6,1550.2,6.45051]
[1744359628732,7.96434,1550.6,1550.2,6.45051]
[1744359628908,7.96434,1550.6,1550.3,0.3606764]
[1744359629082,7.96434,1550.6,1550.3,6.8108964]
[1744359629282,7.96434,1550.6,1550.2,6.45051]
[1744359629283,16.29006482,1550.6,1550.2,6.45051]
[1744359629726,10.80098822,1550.3,1550.1,0.05]
[1744359629890,17.25172822,1550.3,1550.1,0.05]
[1744359630100,10.80098822,1550.3,1550.1,0.05]
[1744359630410,18.97667904,1550.3,1550.1,0.05]
[1744359630733,6.45078,1550.2,1550.1,0.05]
[1744359631035,11.01928,1550.2,1550.1,0.05]
[1744359631328,15.40908822,1549.9,1549.8,0.3970125]
[1744359631632,26.30317504,1549.9,1549.8,0.3970125]
[1744359633331,26.40607889,1549.9,1549.8,0.3970125]
[1744359634112,11.708,1549.9,1549.8,0.3970125]
[1744359634341,3.0,1550.0,1549.8,0.3970125]
[1744359634536,9.45163,1550.0,1549.8,0.3970125]
[1744359634720,6.45202,1549.9,1549.8,0.3970125]
[1744359636129,7.99932,1549.9,1549.8,0.3970125]
[1744359636435,12.744431,1549.9,1549.8,0.3970125]
[1744359639002,13.294431,1549.9,1549.8,0.3970125]
[1744359639202,11.09831,1549.4,1549.3,0.10991321]
[1744359639523,9.45622,1548.9,1548.5,6.45763]
[1744359639721,6.45619,1549.0,1548.7,6.45675]
[1744359639722,8.693,1549.0,1548.7,6.45675]
[1744359640151,8.693,1549.0,1548.9,6.45619]
[1744359640323,8.693,1549.3,1548.9,6.45619]
[1744359640527,8.693,1549.3,1549.1,6.45512]
[1744359640742,8.693,1549.3,1549.2,8.14292684]
[1744359640962,13.14837207,1549.7,1549.2,1.68798684]
[1744359641255,13.14837207,1549.7,1549.4,6.45388]
[1744359641457,8.695,1549.7,1549.4,6.45388]
[1744359641657,8.695,1549.7,1549.5,6.63969592]
[1744359641962,14.649791,1549.9,1549.5,6.45366]
[1744359642157,14.649791,1549.9,1549.4,6.45388]
[1744359642158,14.3705191,1549.8,1549.4,6.45388]
[1744359642457,3.0,1549.7,1549.5,0.18603592]
[1744359642657,6.45301,1549.7,1549.5,0.18603592]
[1744359642856,6.45335,1549.6,1549.2,14.40991]
[1744359643259,17.3701891,1549.8,1549.4,6.45396]
[1744359643557,6.45343,1549.6,1549.2,7.95522]
[1744359643772,12.90772,1549.5,1549.1,6.45529]
[1744359643959,6.45376,1549.5,1549.1,6.45529]
[1744359644129,6.45376,1549.5,1549.2,0.18768684]
[1744359644328,6.45376,1549.5,1549.1,12.91031]
[1744359644559,6.45376,1549.5,1549.2,0.18768684]
[1744359644740,6.45376,1549.5,1549.1,12.91031]
[1744359644942,12.90777,1549.5,1549.2,0.18768684]
[1744359645150,15.219237,1549.5,1549.1,6.45511]
[1744359645350,15.219197,1549.5,1549.2,0.18768684]
[1744359645559,15.219197,1549.5,1549.1,6.45534]
[1744359645873,15.219197,1549.5,1549.2,0.18768684]
[1744359646284,15.219197,1549.5,1549.1,6.45534]
[1744359646476,8.765217,1549.5,1549.3,0.18713646]
[1744359646671,8.765217,1549.5,1549.2,0.19032376]
[1744359646672,6.45412,1549.4,1549.2,0.19032376]
[1744359646975,8.765217,1549.5,1549.1,6.45513]
[1744359647141,8.765217,1549.5,1549.2,6.45489]
[1744359648683,8.765217,1549.5,1549.1,12.91035]
[1744359648859,15.219147,1549.5,1549.1,6.45513]
[1744359649058,6.45411,1549.4,1549.0,14.47717]
[1744359649578,6.45494,1549.2,1548.6,8.07346]
[1744359649877,18.1514,1549.1,1548.6,1.6161]
[1744359650079,8.696,1549.1,1548.6,8.07353]
[1744359650378,8.696,1549.1,1548.9,6.456]
[1744359651380,8.696,1549.1,1549.0,6.45577]
[1744359652488,1.5891,1549.7,1549.4,6.45378]
[1744359652727,8.04216,1549.7,1549.4,6.45378]
[1744359652890,9.491627,1549.7,1549.4,6.45378]
[1744359653723,6.45327,1549.6,1549.5,0.18746575]
[1744359654078,8.697,1549.6,1549.3,6.45422]
[1744359654313,8.697,1549.6,1549.1,6.45528]
[1744359654617,3.0,1549.5,1549.0,7.97402]
[1744359654815,12.90871,1549.4,1549.1,0.1897718]
[1744359655016,6.45462,1549.3,1549.1,0.1897718]
[1744359655220,6.45494,1549.2,1549.1,0.1897718]
[1744359655423,3.0,1549.3,1549.1,6.6450418]
[1744359655609,3.0,1549.3,1549.1,13.1002118]
[1744359655805,8.697,1549.4,1549.2,6.45494]
[1744359656122,1.519,1549.7,1549.5,6.45355]
[1744359656414,13.06717935,1549.9,1549.6,0.18413531]
[1744359656415,14.58617935,1549.9,1549.6,0.18413531]
[1744359656591,7.36917935,1549.7,1549.6,0.18413531]
[1744359656917,7.36917935,1549.7,1549.4,6.45397]
[1744359657079,7.36917935,1549.7,1549.6,0.18455336]
[1744359657278,4.38217594,1549.7,1549.5,0.18510329]
[1744359657600,3.0,1549.7,1549.6,0.18455336]
[1744359657918,3.0,1549.7,1549.5,6.45356]
[1744359658216,3.0,1549.7,1549.6,0.18465827]
[1744359659109,3.0,1549.7,1549.4,6.4539]
[1744359659475,3.0,1549.7,1549.4,12.90785]
[1744359659681,3.0,1549.7,1549.5,0.1852082]
[1744359659877,10.217,1549.9,1549.5,0.1852082]
[1744359660118,8.698,1549.9,1549.8,6.45244]
[1744359660318,8.698,1549.9,1549.8,6.63568396]
[1744359660620,16.02007,1549.9,1549.5,6.45367]
[1744359660998,9.5678,1549.9,1549.6,0.1838191]
[1744359661205,16.01984,1549.9,1549.6,0.1838191]
[1744359661403,9.5678,1549.9,1549.6,0.1838191]
[1744359661609,16.01989,1549.9,1549.6,0.1838191]
[1744359661814,1.601989,1549.8,1549.6,0.1838191]
[1744359662132,1.6526,1550.1,1549.7,6.45286]
[1744359662331,14.66767935,1550.3,1550.0,6.45156]
[1744359662491,10.2985,1550.3,1550.1,0.1803893]
[1744359662893,14.66767935,1550.3,1550.0,12.90302]
[1744359663088,16.13444729,1550.3,1550.1,0.18080867]
[1744359663297,21.04494935,1550.7,1550.2,6.45041]
[1744359663533,14.59607935,1550.7,1550.3,6.4501]
[1744359663740,6.44911,1550.6,1550.3,0.17918578]
[1744359663904,10.81884935,1550.5,1550.3,0.17918578]
[1744359664110,10.81884935,1550.5,1550.1,6.45098]
[1744359664441,6.45091,1550.2,1549.8,8.0165]
[1744359664608,6.45091,1550.2,1549.8,14.46875]
[1744359664810,6.45091,1550.2,1549.8,8.01635]
[1744359665006,12.9019,1550.2,1549.8,8.01633]
[1744359665211,12.38060935,1550.0,1549.6,1.5641]
[1744359665427,6.45259,1549.8,1549.4,8.01813]
[1744359665595,7.69023094,1549.9,1549.5,6.45364]
[1744359666039,7.69036094,1549.9,1549.5,6.45348]
[1744359666240,14.14261094,1549.9,1549.5,6.45348]
[1744359666440,1.23806094,1549.9,1549.7,6.45282]
[1744359666938,1.5598,1550.0,1549.8,6.45239]
[1744359667510,5.92897935,1550.0,1549.5,6.45361]
[1744359667738,12.90525,1549.8,1549.4,8.01818]
[1744359667933,6.45259,1549.8,1549.4,14.47213]
[1744359668137,6.45203,1549.9,1549.5,6.45368]
[1744359668338,14.46333,1550.0,1549.6,6.45299]
[1744359668543,7.898523,1549.9,1549.5,12.90726]
[1744359668753,1.446333,1549.9,1549.6,6.45307]
[1744359668916,1.5598,1550.0,1549.4,1.5641]
[1744359669114,6.45268,1549.8,1549.4,14.47216]
[1744359669313,6.45268,1549.8,1549.5,6.45365]
[1744359669518,8.01145,1550.0,1549.4,1.5641]
[1744359669720,10.2378,1550.0,1549.7,6.4527]
[1744359670626,10.2378,1550.0,1549.7,6.45266]
[1744359670946,6.45174,1550.0,1549.5,1.649]
[1744359671251,12.90368,1550.0,1549.6,6.45313]
[1744359671544,8.02289,1549.8,1549.5,6.45362]
[1744359671742,8.02279,1549.8,1549.4,12.90783]
[1744359672545,8.02279,1549.8,1549.5,6.45367]
[1744359672905,8.678,1549.9,1549.7,6.45271]
[1744359673105,8.08144,1550.2,1549.8,12.90454]
[1744359673344,3.52070694,1550.2,1549.9,6.45183]
[1744359673868,9.97153694,1550.2,1549.9,6.45183]
[1744359674002,3.52070694,1550.2,1549.9,6.45183]
[1744359674345,23.23461,1550.4,1550.0,6.62982642]
[1744359674547,23.23463,1550.4,1550.0,6.62982642]
[1744359675033,6.45045,1550.3,1550.0,6.62982642]
[1744359675754,6.45091,1550.2,1550.0,0.17836642]
[1744359675976,6.45091,1550.2,1549.8,6.45228]
[1744359676132,6.45091,1550.2,1549.9,6.63081593]
[1744359676336,11.10646,1550.4,1549.8,6.45244]
[1744359676569,1.6564,1550.4,1550.1,6.45095]
[1744359676872,1.6564,1550.4,1550.2,6.45077]
[1744359677073,14.55654,1550.4,1550.2,0.17622557]
[1744359677236,16.012164,1550.4,1550.2,0.17622557]
[1744359677567,16.012164,1550.4,1550.3,0.17588591]
[1744359677783,9.561994,1550.4,1550.0,14.55113]
[1744359677985,8.10634,1550.4,1550.3,0.17588591]
[1744359678282,8.10634,1550.4,1550.1,6.45117]
[1744359678575,1.6564,1550.4,1550.2,0.17643521]
[1744359678751,14.55672,1550.4,1550.0,14.55113]
[1744359678955,8.10647,1550.4,1550.3,0.17588591]
[1744359679180,9.562076,1550.4,1550.0,14.55113]
[1744359679385,8.10647,1550.4,1550.3,0.17588591]
[1744359679582,1.6564,1550.4,1550.1,6.45116]
[1744359679786,1.6564,1550.4,1550.3,0.17588591]
[1744359680082,8.10634,1550.4,1550.0,14.55116]
[1744359680381,8.10634,1550.4,1550.1,0.1728179]
[1744359680540,9.561933,1550.4,1550.1,0.1728179]
[1744359681696,6.45078,1550.2,1550.1,0.1728179]
[1744359681989,6.45263,1549.8,1549.6,4.79159534]
[1744359682141,9.45286,1549.7,1549.6,4.79159534]
[1744359682346,11.06286,1549.7,1549.6,4.79159534]
[1744359682580,10.00327,1549.6,1549.5,4.79159534]
[1744359682752,15.96244935,1549.6,1549.5,4.79159534]
[1744359684545,11.59327,1549.6,1549.5,4.79159534]
[1744359684875,15.96244935,1549.6,1549.5,4.79159534]
[1744359685647,22.74244935,1549.6,1549.5,5.34e-06]
[1744359685847,26.03212328,1549.6,1549.5,5.34e-06]
[1744359686056,19.25212328,1549.6,1549.5,5.34e-06]
[1744359686386,6.45555,1549.1,1548.8,1.598]
[1744359687284,21.10101935,1549.2,1548.6,1.6599]